bitfinex-derivatives/quotes_SOLF0:USTF0_20220110
["timestamp","ask_amount","ask_price","bid_price","bid_amount"]
[1641778919294,37.36784248,140.28,140.22,27.56031552]
[1641778919694,5.70399462,140.26,140.22,27.56031552]
[1641778919995,14.52899462,140.26,140.22,2.50265813]
[1641778920393,5.70430134,140.25,140.22,2.50265813]
[1641778926999,9.70515944,140.23,140.22,2.50265813]
[1641778928400,15.41033054,140.23,140.22,2.50265813]
[1641778928700,15.41033054,140.23,140.21,27.66479]
[1641778928902,15.41033054,140.23,140.18,27.66479]
[1641778928903,5.70594503,140.21,140.18,27.66479]
[1641778929103,9.70594503,140.21,140.18,27.66479]
[1641778929502,5.7046695,140.24,140.19,2.51097964]
[1641778929701,5.7046695,140.24,140.19,8.66197964]
[1641778929902,32.6937,140.26,140.19,8.66197964]
[1641778930101,5.70425751,140.25,140.19,43.69207964]
[1641778930301,33.36904751,140.25,140.19,43.69207964]
[1641778930503,33.36904751,140.25,140.2,2.51097964]
[1641778931306,37.36904751,140.25,140.2,2.51097964]
[1641778931505,33.36904751,140.25,140.22,2.91809535]
[1641778932103,4.04808796,140.23,140.22,2.91809535]
[1641778933506,4.04808796,140.23,140.22,5.42810384]
[1641778935211,12.21408796,140.23,140.22,2.51000849]
[1641778936013,8.166,140.23,140.2,2.51000849]
[1641778937713,33.36904751,140.25,140.2,2.51000849]
[1641778937915,33.36904751,140.25,140.2,9.09900849]
[1641778938315,33.36904751,140.25,140.2,34.17879554]
[1641778938714,27.66479,140.25,140.2,34.17879554]
[1641778939118,27.66479,140.25,140.21,17.53848793]
[1641778939518,27.66479,140.28,140.21,17.53848793]
[1641778940116,31.66479,140.28,140.22,15.02847944]
[1641778940515,27.66479,140.25,140.22,15.02847944]
[1641778940715,33.40779,140.25,140.22,15.02847944]
[1641778940916,37.40779,140.25,140.21,15.02847944]
[1641778941116,43.11213658,140.25,140.21,15.02847944]
[1641778941316,5.70473407,140.24,140.21,15.02847944]
[1641778941516,9.70473407,140.24,140.21,15.02847944]
[1641778941717,5.70473407,140.24,140.2,2.51000849]
[1641778941916,9.70473407,140.24,140.2,2.51000849]
[1641778942420,27.66479,140.21,140.2,2.51000849]
[1641778943420,27.66479,140.21,140.19,15.02847944]
[1641778944322,27.66479,140.21,140.18,27.60797958]
[1641778945524,27.66479,140.21,140.19,15.02847944]
[1641778947026,27.66479,140.21,140.18,27.60797958]
[1641778947626,27.66479,140.21,140.19,15.02847944]
[1641778950629,27.66479,140.21,140.2,2.91832584]
[1641778951232,27.66479,140.21,140.2,5.42833433]
[1641778951935,31.66479,140.21,140.2,5.42833433]
[1641778953134,27.66479,140.21,140.2,5.42833433]
[1641778954538,27.66479,140.21,140.2,2.51000849]
[1641778954735,31.66479,140.21,140.2,2.51000849]
[1641778955136,31.66479,140.21,140.2,5.4284242]
[1641778955637,31.66479,140.21,140.2,2.91841571]
[1641778956037,35.71369986,140.21,140.2,2.91841571]
[1641778956238,35.71369986,140.21,140.16,15.02847944]
[1641778956437,43.04569986,140.21,140.2,2.51000849]
[1641778956637,43.04569986,140.21,140.16,15.02847944]
[1641778958340,5.70616211,140.2,140.16,15.02847944]
[1641778959142,27.66479,140.19,140.16,15.02847944]
[1641778963245,27.66479,140.19,140.17,15.02847944]
[1641778963943,27.66479,140.19,140.16,15.02847944]
[1641778966847,5.70616211,140.2,140.16,15.02847944]
[1641778967448,5.70616211,140.2,140.17,15.02847944]
[1641778968050,5.70616211,140.2,140.16,15.02847944]
[1641778968451,27.66479,140.18,140.16,15.02847944]
[1641778968850,27.66479,140.18,140.17,15.02847944]
[1641778969653,27.66479,140.18,140.16,15.02847944]
[1641778971254,34.43579,140.18,140.16,15.02847944]
[1641778971452,6.771,140.18,140.16,15.02847944]
[1641778971853,4.0,140.17,140.16,15.02847944]
[1641778972060,5.70801978,140.16,140.15,10.06949165]
[1641778972253,5.70801978,140.16,140.13,39.82502396]
[1641778972254,9.70801978,140.16,140.13,39.82502396]
[1641778972652,31.66479,140.14,140.13,39.82502396]
[1641778972853,41.20447401,140.14,140.11,15.11984507]
[1641778973254,41.20447401,140.14,140.07,15.11984507]
[1641778974362,41.20447401,140.14,140.05,4.0]
[1641778974757,27.66479,140.11,140.04,42.78463507]
[1641778975055,34.19879,140.11,140.04,46.78463507]
[1641778975256,34.19879,140.11,140.04,27.66479]
[1641778975855,34.19879,140.11,140.04,31.66479]
[1641778976058,34.19879,140.11,140.04,27.66479]
[1641778976657,27.66479,140.06,140.03,32.3743]
[1641778976856,36.14979,140.06,140.01,11.13801349]
[1641778977057,36.14979,140.06,140.01,7.13801349]
[1641778980063,27.66479,140.06,140.01,7.13801349]
[1641778980262,27.66479,140.06,140.01,11.13801349]
[1641778980463,6.85081459,140.13,140.02,4.0]
[1641778980762,6.85081459,140.13,140.03,32.847]
[1641778980763,27.66479,140.09,140.03,32.847]
[1641778981564,4.0,140.08,140.03,32.847]
[1641778981772,9.71105494,140.08,140.03,32.847]
[1641778981963,5.71105494,140.08,140.03,32.847]
[1641778982164,14.91905494,140.08,140.03,32.847]
[1641778982764,27.66479,140.04,140.03,32.847]
[1641778983063,27.66479,140.04,140.01,7.13801349]
[1641778984265,35.15179,140.04,139.99,35.1259]
[1641778985666,40.8645312,140.04,139.99,35.1259]
[1641778986965,27.66479,140.01,139.99,35.1259]
[1641778987165,27.66479,140.01,139.98,7.13979723]
[1641778987365,27.66479,140.01,139.95,27.66479]
[1641778987566,34.91179,140.01,139.95,27.66479]
[1641778988869,34.91179,140.01,139.95,31.66479]
[1641778989272,7.247,140.01,139.95,31.66479]
[1641778989470,27.66479,140.04,140.0,2.31075834]
[1641778991072,27.66479,140.01,140.0,2.31075834]
[1641778992371,35.39679,140.01,140.0,2.31075834]
[1641778993575,35.39679,140.01,139.95,27.66479]
[1641778997478,35.39679,140.01,139.96,2.4953992]
[1641778997877,35.39679,140.01,139.98,4.0]
[1641778998077,27.66479,140.04,139.98,4.0]
[1641778998277,27.66479,140.04,139.98,11.083]
[1641778998878,27.66479,140.04,139.99,6.4953992]
[1641778999077,27.66479,140.04,139.99,2.4953992]
[1641778999278,27.66479,140.01,139.99,2.4953992]
[1641778999782,27.66479,140.01,139.98,2.4953992]
[1641779000378,27.66479,140.01,139.97,34.533]
[1641779000579,27.66479,140.01,139.95,34.80586187]
[1641779001582,27.66479,140.01,139.96,2.50628907]
[1641779002181,27.66479,140.01,139.96,27.63521727]
[1641779003079,27.66479,140.01,139.97,15.09181051]
[1641779003480,27.66479,140.01,139.97,19.09181051]
[1641779003879,27.66479,140.01,139.97,15.09181051]
[1641779004281,27.66479,140.01,139.97,19.09181051]
[1641779005383,27.66479,140.01,139.98,2.50628907]
[1641779005580,4.05405818,140.03,139.98,13.40328907]
[1641779005784,4.05405818,140.03,139.99,4.0]
[1641779006182,4.05405818,140.03,139.99,21.59809958]
[1641779006984,61.52029,140.08,139.99,21.59809958]
[1641779007184,61.52029,140.08,140.01,15.09181051]
[1641779007884,61.52029,140.08,140.01,21.39281051]
[1641779008085,61.52029,140.08,140.02,15.09181051]
[1641779008686,5.71174382,140.07,140.02,15.09181051]
[1641779008885,12.38874382,140.07,140.02,17.59809958]
[1641779009787,27.66479,140.04,140.01,2.50628907]
[1641779010586,27.66479,140.04,140.0,15.09181051]
[1641779011787,35.31579,140.04,140.0,15.09181051]
[1641779012787,35.31579,140.04,140.03,2.31054795]
[1641779013790,35.31579,140.04,140.03,4.81683702]
[1641779014590,27.66479,140.04,140.03,4.81683702]
[1641779016488,27.66479,140.04,140.03,2.50628907]
[1641779016788,27.66479,140.04,140.03,4.81685288]
[1641779017189,27.66479,140.04,140.03,2.31056381]
[1641779017988,27.66479,140.04,140.03,4.81685288]
[1641779019790,33.87879,140.04,140.03,4.81685288]
[1641779020794,33.87879,140.04,140.03,2.50628907]
[1641779020993,33.87879,140.04,140.03,4.81711242]
[1641779021194,33.87879,140.04,140.03,2.31082335]
[1641779021395,27.66479,140.04,140.03,2.31082335]
[1641779021593,27.66479,140.04,140.03,2.335e-05]
[1641779024198,5.71243729,140.05,140.03,2.335e-05]
[1641779024598,55.32958,140.04,140.03,2.335e-05]
[1641779025199,55.32958,140.04,139.98,15.09181051]
[1641779026601,55.32958,140.04,139.99,1.82576405]
[1641779027102,55.32958,140.04,139.99,16.91757456]
[1641779027704,55.32958,140.04,140.0,2.51927809]
[1641779028504,5.71243729,140.05,140.0,2.51927809]
[1641779028702,9.71243729,140.05,140.0,2.51927809]
[1641779029104,27.66479,140.02,140.0,2.51927809]
[1641779030803,27.66479,140.02,140.0,4.34491182]
[1641779031405,27.66479,140.02,140.01,2.51927809]
[1641779031805,4.05387435,140.03,140.01,2.51927809]
[1641779032007,4.05387435,140.03,140.01,11.96927809]
[1641779033106,4.05387435,140.03,140.02,2.51927809]
[1641779034005,4.05387435,140.03,140.01,2.51927809]
[1641779034506,1.784,140.07,140.01,2.51927809]
[1641779034507,15.09181051,140.09,140.01,6.51927809]
[1641779034710,25.95181051,140.1,140.03,4.0]
[1641779034907,25.95181051,140.1,140.03,12.708]
[1641779035106,25.95181051,140.1,140.03,8.708]
[1641779035507,27.66479,140.08,140.03,8.708]
[1641779035907,27.66479,140.08,140.04,17.6110886]
[1641779036110,33.37610719,140.08,140.04,17.6110886]
[1641779036308,5.71213245,140.06,140.04,17.6110886]
[1641779036510,16.75713245,140.06,140.04,8.86e-05]
[1641779036709,12.75713245,140.06,140.01,41.82691269]
[1641779036910,12.75713245,140.06,140.01,1.82570653]
[1641779037413,27.66479,140.03,140.01,1.82570653]
[1641779038111,34.15679,140.03,140.01,1.82570653]
[1641779039314,34.15679,140.03,139.98,27.66479]
[1641779039515,39.87005086,140.03,139.97,33.7119]
[1641779040016,39.87005086,140.03,139.98,10.08437242]
[1641779040516,34.15679,140.03,139.98,10.08437242]
[1641779043119,6.492,140.03,139.98,10.08437242]
[1641779043320,27.66479,140.04,139.98,10.08437242]
[1641779047225,5.7130866,140.03,139.98,10.08437242]
[1641779047424,12.6660866,140.03,139.98,10.08437242]
[1641779047826,27.66479,140.01,139.98,10.08437242]
[1641779049128,6.953,140.03,139.98,10.08437242]
[1641779049729,27.66479,140.0,139.98,10.08437242]
[1641779049930,33.52979,140.0,139.98,10.08437242]
[1641779051633,33.52979,140.0,139.94,41.05458186]
[1641779051634,33.52979,140.0,139.94,47.14278802]
[1641779051930,61.19458,140.0,139.94,47.14278802]
[1641779052830,61.19458,140.0,139.94,17.22269522]
[1641779055231,61.19458,140.0,139.99,1.82636351]
[1641779058935,61.19458,140.0,139.94,17.22269522]
[1641779059136,61.19458,140.0,139.95,1.82674367]
[1641779059535,5.71472273,139.99,139.95,1.82674367]
[1641779060536,5.71472273,139.99,139.95,5.82674367]
[1641779060736,32.7588,140.01,139.95,5.82674367]
[1641779060936,32.7588,140.01,139.95,12.76274367]
[1641779061137,32.7588,140.01,139.95,8.76274367]
[1641779062237,32.7588,140.01,139.95,29.49153367]
[1641779062942,32.7588,140.01,139.95,1.82674367]
[1641779063137,32.7588,140.01,139.94,17.22269522]
[1641779063336,32.7588,140.01,139.96,1.82663711]
[1641779065737,5.71369475,140.02,139.96,9.89963711]
[1641779066338,27.66479,140.03,139.97,4.0]
[1641779066538,27.66479,140.03,139.97,38.3079]
[1641779067239,27.66479,140.03,139.97,53.46230927]
[1641779067438,27.66479,140.03,139.97,51.28886885]
[1641779068438,27.66479,140.03,139.97,78.95365885]
[1641779068640,27.66479,140.03,139.97,51.28886885]
[1641779070747,4.0542324,140.02,139.97,51.28886885]
[1641779071149,4.0542324,140.02,139.97,49.46230927]
[1641779071848,9.76782517,140.02,139.98,1.82596477]
[1641779072348,4.0542324,140.02,139.98,1.82596477]
[1641779074754,11.42669596,140.03,139.98,1.82596477]
[1641779075052,4.05429849,140.01,139.98,1.82596477]
[1641779075452,4.05429849,140.01,139.97,49.46230927]
[1641779075655,4.05429849,140.01,139.98,1.82619571]
[1641779075854,4.05429849,140.01,139.98,9.78219571]
[1641779076756,50.78560927,140.07,140.0,4.0]
[1641779076956,35.6312,140.07,140.02,4.0]
[1641779077157,35.6312,140.07,140.02,38.18779]
[1641779077358,15.15440927,140.08,140.02,34.18779]
[1641779077756,34.0475,140.08,140.03,2.51813465]
[1641779081662,39.75885296,140.08,140.03,2.51813465]
[1641779081860,4.05304,140.07,140.03,2.51813465]
[1641779083864,4.05304,140.07,140.04,1.86561647]
[1641779085268,4.05304,140.07,140.04,9.69661647]
[1641779085667,39.75885296,140.08,140.04,9.69661647]
[1641779085869,4.05331953,140.06,140.04,9.69661647]
[1641779087869,4.05331953,140.06,140.04,7.831]
[1641779088471,4.05331953,140.06,140.05,2.67662615]
[1641779089872,33.37544812,140.09,140.05,2.67662615]
[1641779090072,33.37544812,140.09,140.05,8.75262615]
[1641779091074,33.37544812,140.09,140.05,2.67662615]
[1641779092573,33.37544812,140.09,140.05,2.67657657]
[1641779093974,39.15944812,140.09,140.05,2.67657657]
[1641779094274,5.71159186,140.07,140.05,2.67657657]
[1641779096479,5.71159186,140.07,140.0,42.81919927]
[1641779096681,39.93529186,140.07,140.0,42.81919927]
[1641779096880,39.93529186,140.07,140.06,2.67654539]
[1641779097180,5.71159186,140.07,140.06,2.67654539]
[1641779099080,3.0355501,140.06,140.0,42.81919927]
[1641779099281,3.0355501,140.06,140.0,15.15440927]
[1641779099480,9.71159186,140.07,140.0,15.15440927]
[1641779099682,9.71159186,140.07,140.01,2.51592219]
[1641779099683,27.66479,140.06,140.01,2.51592219]
[1641779100487,27.66479,140.06,140.0,2.51592219]
[1641779100883,27.66479,140.06,140.01,2.67690904]
[1641779101284,2.53687737,140.05,140.01,2.67690904]
[1641779102784,2.53687737,140.08,140.02,2.51635731]
[1641779102984,2.53687737,140.08,140.02,9.56635731]
[1641779103586,2.53687737,140.08,140.02,44.95365731]
[1641779103887,27.66479,140.09,140.03,6.51635731]
[1641779104087,34.3477,140.1,140.03,6.51635731]
[1641779104288,34.3477,140.1,140.03,2.51635731]
[1641779104489,4.0,140.08,140.03,2.51635731]
[1641779104690,5.71157593,140.07,140.04,2.51635731]
[1641779105491,8.24901756,140.06,140.02,2.11542532]
[1641779105693,27.66479,140.05,140.02,2.11542532]
[1641779109096,27.66479,140.05,139.98,52.12130927]
[1641779109297,27.66479,140.05,139.99,25.23740699]
[1641779109998,27.66479,140.05,139.98,52.12130927]
[1641779110198,33.7552,140.06,139.98,52.12130927]
[1641779110598,27.66479,140.05,139.98,79.78609927]
[1641779110800,27.66479,140.05,140.03,2.11498936]
[1641779112199,33.7552,140.06,140.03,2.11498936]
[1641779112800,27.66479,140.05,140.03,2.11498936]
[1641779113900,33.37723854,140.05,140.03,2.11498936]
[1641779114600,39.66123854,140.05,140.03,2.11498936]
[1641779114800,39.66123854,140.05,139.99,25.23708938]
[1641779114999,39.66123854,140.05,139.99,27.35215058]
[1641779116001,39.66123854,140.05,139.99,2.1150612]
[1641779116200,43.66123854,140.05,139.99,2.1150612]
[1641779117402,33.37723854,140.05,139.99,2.1150612]
[1641779118302,5.71280284,140.04,139.99,2.1150612]
[1641779118902,5.71280284,140.04,139.98,75.78609927]
[1641779119303,5.71280284,140.04,140.0,2.11524384]
[1641779120704,9.7668584,140.04,140.0,2.11524384]
[1641779121908,9.7668584,140.04,140.0,9.12624384]
[1641779122509,4.05405556,140.04,140.0,9.12624384]
[1641779123311,4.05405556,140.04,140.0,7.011]
[1641779123711,4.05405556,140.04,140.01,2.11522665]
[1641779124613,27.66479,140.05,140.01,2.11522665]
[1641779124814,4.05406296,140.03,140.01,2.11522665]
[1641779127212,27.66479,140.07,140.01,2.11522665]
[1641779127412,15.15440927,140.08,140.01,38.1724]
[1641779127612,15.15440927,140.08,140.02,4.0]
[1641779128212,15.15440927,140.09,140.01,36.28759218]
[1641779128412,15.15440927,140.09,140.01,40.28759218]
[1641779128614,15.15440927,140.09,140.02,4.0]
[1641779129113,15.15440927,140.09,140.02,31.66479]
[1641779129313,78.01319927,140.1,140.02,56.90760427]
[1641779130313,78.01319927,140.1,140.02,46.81919927]
[1641779130516,62.85879,140.1,140.02,46.81919927]
[1641779131517,4.0,140.09,140.02,42.81919927]
[1641779131719,12.723,140.09,140.02,45.78505436]
[1641779132014,8.723,140.09,140.02,45.78505436]
[1641779132616,4.0,140.08,140.02,18.12026436]
[1641779132916,18.43391919,140.09,140.02,18.12026436]
[1641779133122,27.66479,140.04,140.02,18.12026436]
[1641779133319,33.50479,140.04,140.02,18.12026436]
[1641779133819,5.84,140.04,140.02,2.96585509]
[1641779134419,29.58832846,140.09,140.02,2.96585509]
[1641779135821,29.58832846,140.09,140.01,4.0]
[1641779136021,29.58832846,140.09,140.03,2.15464437]
[1641779136223,14.43391919,140.09,140.03,2.15464437]
[1641779137224,27.66479,140.07,140.03,2.15464437]
[1641779139626,27.66479,140.07,140.0,38.1343]
[1641779139826,27.66479,140.07,140.02,2.96579919]
[1641779140526,15.15440927,140.09,140.02,8.94279919]
[1641779141626,62.85879,140.1,140.05,4.0]
[1641779141830,62.85879,140.1,140.05,10.605]
[1641779143327,62.85879,140.1,140.05,6.605]
[1641779143530,15.15440927,140.12,140.07,4.0]
[1641779143727,15.15440927,140.12,140.08,4.0]
[1641779143929,40.00120616,140.15,140.11,4.0]
[1641779144128,15.1579025,140.13,140.12,4.0]
[1641779144331,15.01447468,140.13,140.11,12.453]
[1641779144729,40.00120616,140.16,140.12,7.13266762]
[1641779144932,60.27627735,140.2,140.14,4.0]
[1641779145130,60.27627735,140.2,140.14,13.147]
[1641779145331,50.53487932,140.21,140.16,27.66479]
[1641779146531,27.66479,140.23,140.16,27.66479]
[1641779147132,31.66479,140.23,140.16,27.66479]
[1641779147333,4.0,140.21,140.14,27.66479]
[1641779147536,4.0,140.18,140.1,7.13368526]
[1641779147733,10.531,140.18,140.09,4.0]
[1641779147932,6.531,140.18,140.08,4.0]
[1641779148333,6.531,140.18,140.12,2.96362618]
[1641779148833,68.2902,140.21,140.12,2.96362618]
[1641779149032,32.9521,140.21,140.12,2.96362618]
[1641779149233,27.66479,140.17,140.12,2.96362618]
[1641779150033,2.51887263,140.2,140.12,4.74562618]
[1641779150235,2.51887263,140.2,140.12,9.05762618]
[1641779150436,100.66919,140.23,140.12,9.05762618]
[1641779150633,100.66919,140.23,140.12,41.64182618]
[1641779151034,10.54268394,140.22,140.12,41.64182618]
[1641779151234,13.05891067,140.22,140.12,41.64182618]
[1641779151634,17.05891067,140.22,140.12,41.64182618]
[1641779152034,14.54268394,140.22,140.12,41.64182618]
[1641779152336,9.70592941,140.21,140.13,2.96364463]
[1641779152734,4.0,140.2,140.13,2.96364463]
[1641779153335,27.66479,140.17,140.13,2.96364463]
[1641779154137,10.54268394,140.22,140.13,2.96364463]
[1641779154337,10.54268394,140.22,140.13,11.47364463]
[1641779154537,10.54268394,140.22,140.13,15.47364463]
[1641779154738,100.66919,140.23,140.13,15.47364463]
[1641779155339,10.54365424,140.21,140.13,15.47364463]
[1641779155541,27.66479,140.2,140.13,15.47364463]
[1641779155939,33.58079,140.2,140.13,15.47364463]
[1641779156141,33.58079,140.2,140.13,11.47364463]
[1641779156440,33.58079,140.2,140.14,2.96326399]
[1641779157239,27.66479,140.2,140.14,2.96326399]
[1641779159243,37.42115951,140.2,140.14,2.96326399]
[1641779159445,9.70716271,140.18,140.14,2.96326399]
[1641779159645,27.66479,140.15,140.14,6.399e-05]
[1641779159844,35.18979,140.15,140.14,6.399e-05]
[1641779160245,35.18979,140.15,140.14,2.96273693]
[1641779160852,35.18979,140.15,140.08,33.2594]
[1641779161052,5.70878267,140.14,140.08,33.2594]
[1641779161653,27.66479,140.12,140.07,7.13521227]
[1641779161855,34.32079,140.12,140.07,7.13521227]
[1641779162655,34.32079,140.12,140.05,31.66479]
[1641779163158,4.0,140.11,140.03,33.326]
[1641779163357,4.0,140.1,140.01,41.14286826]
[1641779163557,4.0,140.1,140.01,7.13826826]
[1641779163858,27.66479,140.07,140.01,7.13826826]
[1641779164055,33.6121,140.09,140.01,7.13826826]
[1641779164257,33.6121,140.09,140.01,11.13826826]
[1641779164456,33.6121,140.09,140.02,4.0]
[1641779164857,27.66479,140.12,140.01,19.67326826]
[1641779165058,61.05569,140.12,140.01,19.67326826]
[1641779165461,61.05569,140.12,140.01,15.67326826]
[1641779165662,61.05569,140.12,140.02,27.66479]
[1641779165861,61.05569,140.12,140.08,2.31298164]
[1641779166062,27.66479,140.12,140.08,9.99198164]
[1641779167464,4.05303916,140.09,140.08,9.99198164]
[1641779167666,27.66479,140.16,140.08,9.99198164]
[1641779169668,27.66479,140.16,140.08,7.679]
[1641779171771,27.66479,140.16,140.07,34.5984]
[1641779172369,4.05162086,140.15,140.09,2.57089627]
[1641779172569,4.05162086,140.15,140.09,9.35289627]
[1641779173771,27.66479,140.12,140.09,2.57089627]
[1641779174171,4.0,140.11,140.09,2.57089627]
[1641779174372,4.0,140.11,140.01,7.13826826]
[1641779174773,33.37453746,140.12,140.01,7.13826826]
[1641779175373,33.37453746,140.12,140.02,2.51047238]
[1641779175573,37.37453746,140.12,140.02,2.51047238]
[1641779175774,27.66479,140.08,140.02,2.51047238]
[1641779178178,27.66479,140.12,140.03,11.13699461]
[1641779178375,27.66479,140.12,140.04,4.0]
[1641779178575,27.66479,140.12,140.05,4.0]
[1641779179177,27.66479,140.12,140.04,1.784]
[1641779179377,27.66479,140.12,140.04,5.784]
[1641779179580,27.66479,140.12,140.06,2.51047238]
[1641779180479,27.66479,140.12,140.06,7.662]
[1641779180978,4.05262358,140.07,140.06,7.662]
[1641779182280,4.05262358,140.07,140.06,10.17259396]
[1641779184684,27.66479,140.12,140.06,10.17259396]
[1641779185085,4.05196465,140.11,140.06,10.17259396]
[1641779185287,4.05196465,140.11,140.06,7.662]
[1641779185987,4.05196465,140.11,140.07,2.51284497]
[1641779188186,4.05196465,140.11,140.07,30.17763497]
[1641779188589,34.51496787,140.15,140.07,30.17763497]
[1641779189088,34.51496787,140.15,140.07,27.66479]
[1641779189389,4.05179509,140.1,140.07,27.66479]
[1641779189787,4.05179509,140.1,140.04,76.14686187]
[1641779189987,4.05179509,140.1,140.08,2.51828431]
[1641779190790,4.05179509,140.1,140.05,2.51828431]
[1641779190991,11.45279509,140.1,140.05,2.51828431]
[1641779192292,11.45279509,140.1,140.08,2.03129219]
[1641779192491,4.05179509,140.1,140.08,10.94829219]
[1641779192991,35.487,140.12,140.08,10.94829219]
[1641779193193,15.09777187,140.14,140.08,10.94829219]
[1641779193392,4.05192905,140.09,140.08,10.94829219]
[1641779194396,4.05192905,140.09,140.08,17.46697371]
[1641779194597,4.05192905,140.09,140.08,13.46697371]
[1641779196098,4.05192905,140.09,140.08,11.43568152]
[1641779197298,37.37313362,140.15,140.08,11.43568152]
[1641779198499,12.24027869,140.14,140.08,8.917]
[1641779198703,8.24027869,140.14,140.07,27.66479]
[1641779199103,2.53146852,140.14,140.07,27.66479]
[1641779199302,4.05229229,140.09,140.08,2.5200816]
[1641779203405,27.66479,140.15,140.08,2.5200816]
[1641779204008,2.53171503,140.14,140.06,15.09777187]
[1641779204408,12.24054801,140.14,140.06,15.09777187]
[1641779204606,4.0,140.13,140.06,15.09777187]
[1641779204806,12.24054801,140.14,140.06,15.09777187]
[1641779205308,2.53171503,140.13,140.05,27.70597459]
[1641779206007,4.05209039,140.09,140.05,27.70597459]
[1641779206206,4.05209039,140.09,140.07,15.09777187]
[1641779210010,5.70862717,140.14,140.07,15.09777187]
[1641779210213,42.76256187,140.15,140.07,15.09777187]
[1641779210814,52.47082765,140.15,140.07,15.09777187]
[1641779211213,2.535282,140.14,140.07,15.09777187]
[1641779211416,14.61092178,140.14,140.07,15.09777187]
[1641779211914,2.535282,140.13,140.08,2.03149138]
[1641779212114,5.70946452,140.12,140.08,2.03149138]
[1641779212814,27.66479,140.1,140.09,2.5200816]
[1641779213013,36.73079,140.1,140.09,2.5200816]
[1641779214018,36.73079,140.1,140.08,2.03149138]
[1641779214219,42.44100575,140.1,140.06,15.09777187]
[1641779214618,42.44100575,140.1,140.05,25.18589299]
[1641779214816,70.10579575,140.1,140.05,25.18589299]
[1641779215518,36.73079,140.1,140.05,4.0]
[1641779215816,36.73079,140.1,140.09,2.03161558]
[1641779216016,27.66479,140.1,140.09,2.03161558]
[1641779218822,27.66479,140.14,140.09,2.03161558]
[1641779219422,42.76256187,140.14,140.09,2.03161558]
[1641779219823,42.76256187,140.14,140.09,1.60511098]
[1641779220823,70.42735187,140.14,140.09,1.60511098]
[1641779221022,55.32958,140.14,140.09,1.60511098]
[1641779221422,5.7091093,140.13,140.09,1.60511098]
[1641779222122,20.80688117,140.13,140.09,1.60511098]
[1641779222925,27.66479,140.11,140.09,1.60511098]
[1641779223823,27.66479,140.11,140.1,1.60512342]
[1641779224827,27.66479,140.11,140.05,25.18589299]
[1641779224828,31.66479,140.11,140.05,25.18589299]
[1641779225025,31.66479,140.08,140.05,25.18589299]
[1641779225225,37.48979,140.08,140.05,25.18589299]
[1641779225525,33.48979,140.08,140.04,15.09777187]
[1641779226528,33.48979,140.08,140.02,25.19180402]
[1641779226729,27.66479,140.08,140.02,25.19180402]
[1641779227931,36.82679,140.08,140.02,25.19180402]
[1641779228833,36.82679,140.08,140.02,15.09777187]
[1641779229036,36.82679,140.08,140.01,48.06657187]
[1641779229434,4.0,140.07,140.01,48.06657187]
[1641779229636,5.71189439,140.06,140.01,15.09777187]
[1641779230033,5.71189439,140.06,140.05,1.26912246]
[1641779231036,5.71189439,140.06,140.05,7.60612246]
[1641779233540,9.76559342,140.06,140.05,7.60612246]
[1641779234038,9.76559342,140.06,140.05,7.6063854]
[1641779235143,4.05369903,140.06,140.05,7.6063854]
[1641779236240,4.05369903,140.06,140.05,1.2693854]
[1641779237141,38.92501012,140.1,140.05,1.2693854]
[1641779237542,4.05320152,140.06,140.05,1.2693854]
[1641779237743,4.05320152,140.06,140.02,42.76256187]
[1641779238042,4.05320152,140.06,140.05,1.26889389]
[1641779241047,33.2147,140.1,140.05,1.26889389]
[1641779241245,4.0532006,140.09,140.05,28.93368389]
[1641779241444,4.0532006,140.09,140.05,27.66479]
[1641779241848,4.0532006,140.09,140.03,26.45102382]
[1641779242646,4.0532006,140.09,140.03,16.36667404]
[1641779243246,4.0532006,140.09,140.05,27.66479]
[1641779244048,4.0532006,140.09,140.05,4.0]
[1641779244248,4.0532006,140.09,140.05,9.963]
[1641779244450,4.0532006,140.09,140.06,4.0]
[1641779244648,27.66479,140.12,140.06,4.0]
[1641779244848,27.66479,140.12,140.07,4.0]
[1641779245050,15.09777187,140.15,140.07,4.0]
[1641779245350,15.09777187,140.15,140.11,4.0]
[1641779245549,15.09777187,140.15,140.11,7.167]
[1641779245750,42.76256187,140.18,140.11,7.167]
[1641779246150,15.09777187,140.18,140.12,7.13266762]
[1641779247153,9.86019719,140.21,140.12,22.23043949]
[1641779247352,37.52498719,140.21,140.13,27.66479]
[1641779248153,41.52498719,140.21,140.13,27.66479]